Cogmind - Beta 9.6 @@@ ROGUE MODE // 2020.07.29 @ 12:09:08 Player: dhtilly Result: Destroyed by Y-45 Defender with Beam Rifle Performance ------------- Evolutions (1) 500 Regions Visited (2) 400 Robots Destroyed (46) 230 Value Destroyed (1165) 1165 Prototype IDs (6) 120 Alien Tech Used (0) 0 Bonus (49) 49 TOTAL SCORE: 2464 Bonus ------- High Alert Combat Kills 49 Cogmind --------- Core Integrity 0/400 Matter 108/300 Energy 0/100 System Corruption 0% Temperature Cool (9) Movement Flying (40) Location -9/Materials Parts ------- > --- POWER (1) -------- (None) > --- PROPULSION (4) --- VTOL Module > --- UTILITY (2) ------ Small Storage Unit Weight Redist. System > --- WEAPON (2) ------- Improved Light Cannon > --- INVENTORY (6) ---- Improved Flight Unit Terrain Scan Processor Transport Network Coupler Propulsion Shielding Hardened Light Armor Plating Peak State ------------ > --- POWER ------------ Light Nuclear Core > --- PROPULSION ------- Aluminum Leg Improved Flight Unit Improved Flight Unit > --- UTILITY ---------- Small Storage Unit Medium Storage Unit > --- WEAPON ----------- Improved Medium Laser Autogun > --- INVENTORY -------- Aluminum Leg Weight Redist. System Terrain Scanner Terrain Scan Processor Transport Network Coupler Propulsion Shielding Hardened Light Armor Plating Mini Grenade Launcher [Rating: 18] Favorites ----------- Power Light Ion Engine Engine Light Ion Engine Power Core Light Nuclear Core Propulsion Aluminum Leg Leg Aluminum Leg Wheel Wheel Flight Unit Flight Unit Utility Small Storage Unit Device Weight Redist. System Storage Small Storage Unit Protection Light Armor Plating Weapon Autogun Energy Gun Small Laser Energy Cannon EM Pulse Cannon Ballistic Gun Autogun Ballistic Cannon Improved Light Cannon Launcher Mini Grenade Launcher Build | -11 -10 -9 ------- Run | Scr Mat Mat Slots Evolved 2 | . . 2 Power . | . . . Propulsion 2 | . . 2 Utility . | . . . Weapon . | . . . Parts Attached 56 | 6 12 38 Power 6 | 1 2 3 Engine 5 | 1 2 2 Core 1 | . . 1 Reactor . | . . . Propulsion 24 | 2 2 20 Treads . | . . . Leg 11 | 2 2 7 Wheel 3 | . . 3 Hover . | . . . Flight 10 | . . 10 Utility 5 | 1 3 1 Device 1 | . . 1 Storage 3 | 1 2 . Processor . | . . . Hackware . | . . . Protection 1 | . 1 . Artifact . | . . . Weapon 21 | 2 5 14 Energy Gun 6 | 1 1 4 Energy Cannon 1 | . . 1 Ballistic Gun 8 | 1 2 5 Ballistic Cannon 1 | . . 1 Launcher 5 | . 2 3 Special Weapon . | . . . Impact Weapon . | . . . Slashing Weapon . | . . . Piercing Weapon . | . . . Special Melee Weapon . | . . . Unidentified Prototypes 2 | . . 2 Parts Lost 12 | . . 12 Power 2 | . . 2 Propulsion 5 | . . 5 Utility . | . . . Weapon 5 | . . 5 Highest Loss Streak 3 | . . 3 Average Slot Usage (%) 94 | . 97 92 Engine 10 | . 14 7 Leg 23 | . 28 19 Flight 10 | . . 19 Storage 23 | . 24 21 Energy Gun 9 | . 12 6 Ballistic Gun 12 | . 14 10 Launcher 1 | . 1 2 Naked Turns . | . . . Heaviest Build 23 | 10 21 23 Greatest Support 43 | 20 20 43 Greatest Overweight (x) 6 | . 1 6 Average Overweight (x) . | . . . Largest Inventory Capacity 10 | 6 10 10 Average Capacity 9 | 5 8 9 Most Carried 10 | 4 10 10 Average Carried 8 | 2 8 9 Final Capacity 10 | 6 10 6 Final Carried 10 | 4 10 5 Class Distribution -------------------- 91% | Mutant 8% | Scavenger-Mutant Dominant Class ---------------- Mutant | -10/Materials Mutant | -9/Materials Resources | -11 -10 -9 ----------- Run | Scr Mat Mat Matter Collected 1018 | 260 256 502 Remotely . | . . . Salvage Created 1292 | . 389 903 Parts 84 | . 20 64 Haulers Intercepted 3 | . 1 2 Recyclers Shooed 1 | . 1 . Parts Field Recycled . | . . . Retrieved Matter . | . . . Parts Self-Destructed . | . . . Prevented . | . . . Kills | -11 -10 -9 ------- Run | Scr Mat Mat Combat Hostiles Destroyed 31 | . 8 23 Guns 14 | . 3 11 AOE 17 | . 5 12 Classes Destroyed 10 | . 5 5 Worker 2 | . . 2 Builder 2 | . . 2 Tunneler 1 | . . 1 Hauler 3 | . 1 2 Recycler 2 | . 1 1 Watcher 5 | . 2 3 Swarmer 5 | . 2 3 Grunt 23 | . 6 17 Duelist 1 | . . 1 Sentry 2 | . . 2 Best Kill Streak 17 | . 5 17 Combat Bots Only 11 | . 5 11 Max Kills in Single Turn 4 | . 3 4 Gunslinging . | . . . Exploded 3 | . 2 3 Melee . | . . . Uniques/NPCs Destroyed . | . . . Combat | -11 -10 -9 -------- Run | Scr Mat Mat Damage Taken 2077 | . 295 1782 Core 458 | . 44 414 Absorbed by Shields . | . . . Core Remaining (%) 91 | 100 82 . Volleys Fired 121 | . 45 76 Largest 2 | . 2 2 Hottest 95 | . 63 95 Shots Fired 222 | . 83 139 Gun 192 | . 77 115 Cannon . | . . . Launcher 30 | . 6 24 Special . | . . . Kinetic 126 | . 45 81 Thermal 48 | . 18 30 Explosive 30 | . 6 24 Electromagnetic 18 | . 14 4 Robot Hit Streak 19 | . 11 19 Robot Miss Streak 5 | . 5 2 Penetration Max . | . . . Secondary Targets 2 | . . 2 Max Gunslinging Chain 1 | . . 1 Shots Hit Robots 141 | . 43 98 Core Hits 79 | . 19 60 Critical Hits 3 | . 1 2 Critical Kills 1 | . . 1 Critical Parts Destroyed 2 | . 1 1 Melee Attacks . | . . . Impact . | . . . Slashing . | . . . Piercing . | . . . Sneak Attacks . | . . . Combat Hostiles . | . . . Follow-up Attacks . | . . . Damage Inflicted 3787 | . 1010 2777 Guns 1661 | . 539 1122 Cannons . | . . . Explosions 2126 | . 471 1655 Melee . | . . . Ramming . | . . . Kinetic 1076 | . 336 740 Thermal 443 | . 101 342 Explosive 2126 | . 471 1655 Electromagnetic 142 | . 102 40 Impact . | . . . Slashing . | . . . Piercing . | . . . Highest Corruption 1 | . 1 . Average Corruption 1 | . 1 . Corruption Purged . | . . . Effects 3 | . 3 . Message Errors 2 | . 2 . Energy Discharges 1 | . 1 . Overload Shots . | . . . Overflow Damage 40 | . . 40 Projectiles . | . . . Explosions 40 | . . 40 Melee . | . . . Knockbacks . | . . . Impact . | . . . Kinetic . | . . . Secondary . | . . . Self-Inflicted Damage 94 | . 45 49 Shots 5 | . 3 2 Rammed . | . . . Targets Rammed . | . . . Kicked . | . . . Crushed . | . . . Highest Temperature 222 | . 68 222 Average Temperature 39 | . 19 53 Received Heat Transfer 858 | . 66 792 Effects 1 | . . 1 Energy Bleed 1 | . . 1 Siege Activations . | . . . Robots Corrupted . | . . . Combat Hostiles . | . . . Parts Fried 1 | . 1 . Impact Corruptions . | . . . Robots Melted . | . . . Combat Hostiles . | . . . Parts Melted . | . . . Heat Transferred 995 | . 225 770 Parts Sabotaged . | . . . Parts Stolen . | . . . Parts Stripped . | . . . Power Chain Reactions . | . . . Missiles Intercepted . | . . . Alert | -11 -10 -9 ------- Run | Scr Mat Mat Peak Influence 500 | . 251 500 Average Influence 166 | . 99 234 Maximum Alert Level 2 | . 1 2 Low Security (%) 68 | 100 78 57 Level 1 12 | . 21 5 Level 2 18 | . . 36 Level 3 . | . . . Level 4 . | . . . Level 5 . | . . . High Security . | . . . Max Security . | . . . Squads Dispatched 8 | . 3 5 Investigation 3 | . 1 2 Extermination . | . . . Reinforcement 5 | . 2 3 Assault . | . . . Garrison . | . . . Intercept . | . . . Construction Impeded 1 | . . 1 Haulers Reinforced . | . . . Stealth | -11 -10 -9 --------- Run | Scr Mat Mat Distress Signals 5 | . . 5 Communications Jammed . | . . . Distress Signals . | . . . Times Spotted 71 | . 23 48 Peak Tracking Total 11 | . 7 11 Tactical Retreats 7 | . 3 4 Traps | -11 -10 -9 ------- Run | Scr Mat Mat Traps Triggered 1 | . 1 . Indirectly . | . . . Trap Hack Attempts . | . . . Triggered . | . . . Disarmed . | . . . Reprogrammed . | . . . Reused . | . . . Traps Extracted . | . . . Installed . | . . . Triggered . | . . . Machines | -11 -10 -9 ---------- Run | Scr Mat Mat Machines Disabled 4 | . . 4 Max in Single Turn 2 | . . 2 Machines Sabotaged . | . . . Garrisons Compromised . | . . . Overloaded Fab Kills . | . . . Fab Network Shutdowns . | . . . Hacking | -11 -10 -9 --------- Run | Scr Mat Mat Machines Accessed 16 | . 7 9 Terminals 11 | . 5 6 Fabricators . | . . . Repair Stations 2 | . 1 1 Recycling Units 2 | . 1 1 Scanalyzers 1 | . . 1 Garrison Access . | . . . Total Hacks 55 | . 25 30 Successful 32 | . 10 22 Failed 23 | . 15 8 Catastrophic 3 | . 2 1 Database Lockouts . | . . . Manual 16 | . 11 5 Terminals 32 | . 17 15 Fabricators . | . . . Repair Stations 5 | . 3 2 Recycling Units 8 | . 5 3 Scanalyzers 10 | . . 10 Garrison Access . | . . . Terminal Hacks 16 | . 7 9 Record 1 | . 1 . Robot Analysis 1 | . . 1 Prototype ID Bank 2 | . 1 1 Level Access Points 1 | . . 1 Branch Access Points 1 | . . 1 Emergency Access Points 1 | . . 1 Terminal Index 1 | . . 1 Alert Level 3 | . 1 2 Locate Traps 2 | . 1 1 Transport Status 1 | . 1 . Recall Reinforcements 1 | . 1 . Hauler Manifests 1 | . 1 . Fabricator Hacks . | . . . Repair Station Hacks 3 | . 1 2 Scan Component 2 | . 1 1 Repair 1 | . . 1 Recycling Unit Hacks 5 | . 2 3 Process 1 | . . 1 Report Inventory 2 | . 1 1 Retrieve Matter 1 | . . 1 Retrieve Components 1 | . 1 . Scanalyzer 8 | . . 8 Insert Component 4 | . . 4 Analyze 4 | . . 4 Garrison Access Hacks . | . . . Unauthorized Hacks . | . . . Terminals . | . . . Fabricators . | . . . Repair Stations . | . . . Recycling Units . | . . . Scanalyzers . | . . . Garrison Access . | . . . Data Cores Recovered . | . . . Used . | . . . Hacking Detections 15 | . 7 8 Full Trace Events 6 | . 3 3 Feedback Events 1 | . 1 . Corruption 1 | . 1 . Feedback Blocked . | . . . Robot Schematics Acquired . | . . . Robots Built . | . . . Matter . | . . . Time . | . . . Total Robot Build Rating . | . . . Part Schematics Acquired 4 | . . 4 Parts Built . | . . . Matter . | . . . Time . | . . . Total Part Build Rating . | . . . Parts Repaired 1 | . . 1 Time 38 | . . 38 Parts Recycled . | . . . Recycled Matter 161 | . . 161 Retrieved Matter 189 | . . 189 Retrieved Components 4 | . 4 . Parts Scanalyzed 4 | . . 4 Part Schematics Acquired 4 | . . 4 Parts Damaged . | . . . Bothacking | -11 -10 -9 ------------ Run | Scr Mat Mat Used RIF Installer . | . . . Robots Hacked . | . . . Non-combat . | . . . Combat . | . . . Robot Hacks Applied . | . . . Relay Couplers Released . | . . . Robots Rewired . | . . . Allies Hacked . | . . . Hacks Repelled . | . . . Allies | -11 -10 -9 -------- Run | Scr Mat Mat Total Allies . | . . . Largest Group . | . . . Highest-Rated Group . | . . . Highest-Rated Ally . | . . . Total Orders . | . . . Ally Attacks . | . . . Total Damage . | . . . Kills . | . . . Allies Corrupted . | . . . Allies Melted . | . . . Intel | -11 -10 -9 ------- Run | Scr Mat Mat Robot Analysis Total 1 | . . 1 Derelict Logs Recovered . | . . . Drone Launches . | . . . Drone Recoveries . | . . . Exploration | -11 -10 -9 ------------- Run | Scr Mat Mat Turns Passed 2087 | 61 952 1074 Spaces Moved 1309 | 42 642 625 Core 5 | 3 . 2 Treads . | . . . Legs 1070 | 39 642 389 Wheels 64 | . . 64 Hover . | . . . Flight 170 | . . 170 Fastest Speed 32 | 50 120 32 Average Speed 116 | 115 121 111 Slowest Speed 370 | 120 150 370 Overloaded Moves . | . . . Propulsion Burnouts . | . . . Robots Hopped 7 | . . 7 Cave-ins Triggered . | . . . Exploration Rate (%) 49 | 3 91 54 Regions Visited 2 Branch Regions . Pre-discovered Areas . | . . . Known Exits Taken . | . . . Unknown Exits Taken 2 | 1 1 . Scrap Searched . | . . . Spaces Dug . | . . . Terrain Destroyed 132 | . 36 96 Melee . | . . . Projectile . | . . . AOE 132 | . 36 96 Actions | -11 -10 -9 --------- Run | Scr Mat Mat Total 1674 | 51 743 880 Wait 120 | . 14 106 Move 1295 | 41 641 613 Hop 5 | . . 5 Pick Up 28 | 4 14 10 Fast Attach 26 | 6 4 16 Attach 9 | . 1 8 Detach 5 | . 1 4 Swap 21 | . 7 14 Drop 44 | . 16 28 Fire 121 | . 45 76 Melee . | . . . Ram . | . . . Kick . | . . . Crush . | . . . Escape Stasis . | . . . Rewire . | . . . Trap . | . . . Miscellaneous . | . . . Route ------- -11/Scrapyard -10/Materials (discovered 5 exits: *Mat x3 / [*Min x2]) -9/Materials (discovered 4 exits: *Mat x3 / *Min) History --------- Turn | Location | Event 11 | -11/Scrapyard | Discovered new exit (range 16) 62 | -11/Scrapyard | Entered Materials 192 | -10/Materials | Discovered new exit (range 8) 276 | -10/Materials | Discovered new exit (range 13) 305 | -10/Materials | Build established: Mutant 578 | -10/Materials | Discovered new exit (range 3) 658 | -10/Materials | Discovered new exit (range 16) 823 | -10/Materials | Discovered new exit (range 15) 1014 | -10/Materials | Entered another Materials area 1014 | -9/Materials | Evolved 2 slots: Propulsion x2 1291 | -9/Materials | Repaired Lgt. Nuclear Core 1366 | -9/Materials | Identified exit to Mines 1668 | -9/Materials | Discovered new exit (range 14) 1691 | -9/Materials | Destroyed 11 combat bots 1822 | -9/Materials | Core integrity fell below 50% 1872 | -9/Materials | Lost 3 parts (1n2w) 1990 | -9/Materials | Identified exit to Materials 2006 | -9/Materials | Lost 3 parts (1p2w) 2021 | -9/Materials | Core integrity fell below 20% 2088 | -9/Materials | Destroyed by Y-45 Defender with Beam Rifle Last Messages --------------- (12,84) (82,88) Map updated. ALERT: Suspicious activity at Terminal M010. Dispatching Investigation squad. Acquired EM Pulse Cannon. Aluminum Leg destroyed. Electrolysis Chamber disabled. Dropped Aluminum Leg. Dropped Imp. Flight Unit. Dropped EM Pulse Cannon. Dropped Terrain Scanner. Dropped Aluminum Leg. Dropped Med. Storage Unit. Acquired Imp. Flight Unit. K-01 Serf cleans the Machine. Acquired Imp. Light Cannon. G-34 Mercenary destroyed. Acquired 36 matter. Imp. Flight Unit destroyed. VTOL Module destroyed. Map ----- +----------------------------------------------------+ | ?????????????????????????????????????????????????? | | ?????????????????????????????????????????????????? | | ?????????????????????????????????????????????????? | | ?????????????????????????????????????????????????? | | ?????????????????????????????????????????????????? | | ?????????????????????????????????????????????????? | | ?????????????????????????????????????????????????? | | ?????????????????????????????????????????????????? | | ?????????????????????????????????????????????????? | | ?????????????????????????????????????????????????? | | ?????????????????????????????????????????????????? | | ?????????????????????????????????????????????????? | | ?????????????????????????????????????????????????? | | ??????????????????????????????#########??????????? | | ??????????????????????????????# #??????????? | | ??????????????????????????????# """ #??????????? | | ??????????????????????????????# """ #????????### | | ??????????????????????????????# !"!" #??????? | | ???????????????????????######## = =] #######? | | ???????????????????????# #######/## # | | ???????????????????????# # | | ???????????????????????+ T + | | ???????????????????????# # | | ???????????????????????# ## ## # "Y" | | ???????????????????????## #?# ### ##?""" | | ????????????????????????#@ #?#!!] ]]#?# #??#### | | ????????????????????????# #?#!!]]]]#?# #?????? | | ????????????????????????# #?########?# #?????? | | ???????????????????????## ##????????## ####??? | | ???????????????????????# #????????# """#??? | | ???????????????????????# #????????# "#??? | | ???????????????????????# #????????# !"#??? | | ???????????????????????#ggY #????????# > ""#??? | | ???????????????######### #????????# |"#??? | | ???????????????# ####Y###????????# "#??? | | ???????????????# ####g#??????????# """#??? | | ???????????????# + Y#??????????## ####??? | | ???????????????# #### #???????????# #?????? | | ???????????????# #??#Y#???????????# #?????? | | ???????????????# #??# #???????????# #?????? | | ??????????################g###????????## ##????? | | ??????????# # ########## #????? | | ??????????# """ """ # ###??? | | ??????????# """ """ / = # #??# | | ??????????# """ """ # # ##?# | | ??????????# # ##+####### # #?# | | ??????????#################### ?## ###+### ##?# | | ?????????????????????????????# # #??# | | ?????????????????????????????# # ! #?## | | ?????????????????????????????# # #?# | +----------------------------------------------------+ Best States ------------- Heat Dissipation 28 Energy Generation 14 Energy Capacity 265 Matter Stores 300 Matter Capacity 300 Sight Range 16 Terrain Scan Density 10 Additional Mass Support 6 Armor Coverage 150 Evasion (%) 62 Item Schematics ----------------- Flight Unit | -9/Materials | Scanalyzed Lgt. Nuclear Core | -9/Materials | Scanalyzed Weight Redist. System | -9/Materials | Scanalyzed Mni. Grenade Launcher | -9/Materials | Scanalyzed Robot Schematics ------------------ None Fabricated ------------ Nothing Alien Tech Used ----------------- None Achievements -------------- None Challenges ------------ None Game ------ Seed ShrapnelGodInterpreter Manual? 0 Play Time 01:04:36 Cumulative 12.7 hours Start 2020.07.15 @ 00:32:35 End 2020.07.29 @ 12:09:08 Sessions 4 Manual Loads 0 Difficulty Rogue Special Mode None Game No. 14 Rogue 14 Adventurer 0 Explorer 0 Win Type - Total 0 Types 0/0/0/0/0/0/0 Lore% 4 Gallery% 17 Achievement% 14 Wizard Run 0 Options --------- ASCII 0 Keyboard 1 Movement Vi Keybinds 0 Fullscreen 2 Font 12/Terminus Map View 83x54 Tactical HUD 0 Map Filters NONE Filters NONE Steam 1 RUN: b9d962b4-0275-4bec-906a-f337285abee8